{"text_format":"3","workbook":"xlsx","n_sheets":8,"sheets":["PRESUPUESTO","PBR","CALENDARIO","Formato 1","Formato 2","ESTRUCTUA ANALITICA","Formato 3","Formato 4"],"not_rendered":{"macros":1,"external_links":2,"defined_names":27},"read":"whole","date_system":"1900"}

{"sheet":"PRESUPUESTO","index":0,"n_rows":70,"n_cols":8,"rows_kept":70,"merged":[[0,3,1,3],[0,4,0,7],[42,0,46,0],[53,4,54,4],[53,5,54,5],[53,6,54,6],[53,7,54,7],[57,6,58,6],[57,7,58,7],[69,1,69,3]]}
[null,"Procesos",null,"META 2020","PRESUPUESTO "]
["cuenta","Garantizar que los planes y programas de estudios sean pertinentes y contribuyan a que los estudiantes puedan avanzar exitosamente en su trayectoria educativa, al tiempo que desarrollen aprendizajes significativos y competencias que les sirvan a lo largo de la vida.","UNIDAD DE MEDIDA",null," FEDERAL"," ESTATAL","PROPIO","TOTAL"]
[33000,"Elaborar Estudios de factibilidad de los programas educativos","Documento",3,{"v":3000,"d":"$3,000.00"},{"v":3000,"d":"$3,000.00"},0,{"$f":"SUM(E3:G3)","v":{"v":6000,"d":"$6,000.00"}}]
[null,"Elaborar Análisis Situacional del Trabajo (AST) con ayuda del comité de pertinencia","Documento",3,{"v":1500,"d":"$1,500.00"},{"v":1500,"d":"$1,500.00"},0,{"$f":"SUM(E4:G4)","v":{"v":3000,"d":"$3,000.00"}}]
[22100,"ALIMENTACION",null,null,{"v":1000,"d":"$1,000.00"},{"v":1000,"d":"$1,000.00"},0,{"v":2000,"d":"$2,000.00"}]
[22300,"UTENCILIOS",null,null,{"v":500,"d":"$500.00"},{"v":500,"d":"$500.00"},0,{"v":1000,"d":"$1,000.00"}]
[null,"Aprobación de los programas educativos por parte del comité de pertinencia","Documento",3,{"v":500,"d":"$500.00"},{"v":500,"d":"$500.00"},0,{"$f":"SUM(E7:G7)","v":{"v":1000,"d":"$1,000.00"}}]
[22300,"ALIMENTACION",null,null,{"v":500,"d":"$500.00"},{"v":500,"d":"$500.00"},0,{"v":1000,"d":"$1,000.00"}]
[null,"Formar Profesionistas capacitados para el desarrollo de sus actividades y posicionar a los egresados en el sector productivo.","UNIDAD DE MEDIDA","META 2020"," FEDERAL"," ESTATAL","PROPIO","TOTAL"]
[null,"Cumplir con el plan de estudios a nivel Técnico Superior Universitario de 30 practica y 70% teoría.","Documento",{"v":0.3,"d":"30%"},{"v":10000,"d":"$10,000.00"},{"v":1000,"d":"$1,000.00"},0,{"$f":"SUM(E10:G10)","v":{"v":11000,"d":"$11,000.00"}}]
[29101,"accesorios y materiales menores para laboratorio",null,null,{"v":10000,"d":"$10,000.00"},{"v":1000,"d":"$1,000.00"},0,{"$f":"SUM(E11:G11)","v":{"v":11000,"d":"$11,000.00"}}]
[40000,"Realizar viajes de estudios ","Viajes",5,0,0,{"v":49000,"d":"$49,000.00"},{"v":49000,"d":"$49,000.00"}]
[null,"Firma de convenios de colaboración con el sector productivo","Convenios",40,0,0,{"v":20000,"d":"$20,000.00"},{"v":20000,"d":"$20,000.00"}]
[37010,"VIATICOS",null,null,0,0,{"v":20000,"d":"$20,000.00"},{"v":20000,"d":"$20,000.00"}]
[null,"Seguimiento al egresado a nivel Técnico Superior Universitario","Documento",{"v":0.8,"d":"80%"},{"v":136,"d":"$136.00"},{"v":136,"d":"$136.00"},{"v":4228,"d":"$4,228.00"},{"v":4500,"d":"$4,500.00"}]
[31500,"TELEFONIA",null,null,{"v":136,"d":"$136.00"},0,{"v":2332.61,"d":"$2,332.61"},{"v":2468.61,"d":"$2,468.61"}]
[null,"Implementación de una bolsa de trabajo para nuestros egresados","Documento",{"v":0.15,"d":"15%"},0,0,0,0]
[null,"Asegurar una mayor cobertura con respecto al egreso del nivel medio superior en la región, incrementando la cobertura en Técnico Superior Universitario.","UNIDAD DE MEDIDA","META 2020"," FEDERAL"," ESTATAL","PROPIO","TOTAL"]
[37010,"Visitar 30 escuelas de nivel media superior de la región.","informe",30,0,{"v":5000,"d":"$5,000.00"},{"v":16000,"d":"$16,000.00"},{"v":21000,"d":"$21,000.00"}]
[39910,"Participar en las expo-profesionales que realizan las preparatorias de la región.","informe",5,0,0,{"v":20000,"d":"$20,000.00"},{"v":20000,"d":"$20,000.00"}]
[37010,"Visitar puntos estratégicos de los nueve municipios de la región como plazas, tianguis y ferias.","informe",9,0,0,{"v":5000,"d":"$5,000.00"},{"v":5000,"d":"$5,000.00"}]
[null,"Atender el 100% de nuestros alumnos en tutorias por cuatrimestre","porcentaje de alumnos attendidos ",100,0,0,0,0]
[null,"Cumplir con las tutorias el 100% en cda cuatrimestre","informe",3,null,0,0,0]
[null,"Disminuir el abandono escolar, mejorando la eficiencia terminal y aumentar la tasa de transición en la continuidad de estudios a nivel Ingeniería.","UNIDAD DE MEDIDA","META 2020"," FEDERAL"," ESTATAL","PROPIO","TOTAL"]
[0,"Implementación de tutorías y asesorías","Documento",60,0,0,0,0]
[0,"Atención alumnos vulnerables (académico, socioeconómico y psicológico)","alumnos",20,0,0,0,0]
[0,"Otorgar becas alimenticias por cuatrimestre alumnos en situación económica.","alumnos",30,0,0,0,0]
[0,"Otorgar becas de colegiatura alumnos destacados académicamente.","alumnos",39,0,0,0,0]
[null,"Implementar programas de actividades culturales y deportivas diferenciados para atender las diversas necesidades de la población estudiantil.","UNIDAD DE MEDIDA","META 2020"," FEDERAL"," ESTATAL","PROPIO","TOTAL"]
[null,"Participar en el encuentro deportivo cultural de Universidades Tecnológicas","Evento (Informe)",1,{"$f":"SUM(E31:E34)","v":{"v":3500,"d":"$3,500.00"}},{"$f":"SUM(F31:F34)","v":{"v":500,"d":"$500.00"}},{"v":75328.76999999999,"d":"$75,328.77"},{"$f":"SUM(E30:G30)","v":{"v":79328.76999999999,"d":"$79,328.77"}}]
[22100,"ALIMENTACION",null,null,{"v":3500,"d":"$3,500.00"},{"v":500,"d":"$500.00"},{"v":15914.39,"d":"$15,914.39"},{"$f":"SUM(E31:G31)","v":{"v":19914.39,"d":"$19,914.39"}}]
[44100,"TRASPORTE",null,null,0,0,{"v":20000,"d":"$20,000.00"},{"v":20000,"d":"$20,000.00"}]
[27100,"UNIFORME",null,null,0,0,{"v":11414.38,"d":"$11,414.38"},{"v":11414.38,"d":"$11,414.38"}]
[39910,"ARBITRAJE",null,null,0,0,{"v":28000,"d":"$28,000.00"},{"v":28000,"d":"$28,000.00"}]
[null,"Integrar tres talleres: Un deportivo, un cultural y Artístico","Talleres",3,{"$f":"SUM(E36)","v":{"v":3873.2,"d":"$3,873.20"}},{"$f":"SUM(F36)","v":{"v":2873.2,"d":"$2,873.20"}},0,{"v":6746.4,"d":"$6,746.40"}]
[27000,"UNIFORMES TEXTIL",null,null,{"v":3873.2,"d":"$3,873.20"},{"v":2873.2,"d":"$2,873.20"},null,{"v":6746.4,"d":"$6,746.40"}]
[39910,"Participar en eventos deportivos","Evento (Informe)",4,0,0,{"v":5000,"d":"$5,000.00"},{"v":5000,"d":"$5,000.00"}]
[39910,"Participar en eventos culturales (Desfiles, culturales)","Evento (Informe)",8,{"$f":"SUM(E39:E41)","v":{"v":500,"d":"$500.00"}},{"$f":"SUM(F39:F41)","v":{"v":500,"d":"$500.00"}},{"v":17500,"d":"$17,500.00"},{"v":18500,"d":"$18,500.00"}]
[null,"DESFILES",null,null,0,0,{"v":7500,"d":"$7,500.00"},{"v":7500,"d":"$7,500.00"}]
[null,"SONIDO",null,null,0,0,{"v":10000,"d":"$10,000.00"},{"v":10000,"d":"$10,000.00"}]
[null,"TEXTIL",null,null,{"v":500,"d":"$500.00"},{"v":500,"d":"$500.00"},0,{"v":1000,"d":"$1,000.00"}]
[39902,"Realizar eventos internos como: aniversario, Día del TSU, presentación de proyectos","Evento (Informe)",4,0,0,{"$f":"SUM(G43:G47)","v":{"v":55000,"d":"$55,000.00"}},{"v":55000,"d":"$55,000.00"}]
["otros servicios generales","DIA TSU ",null,null,0,0,{"v":10000,"d":"$10,000.00"},{"v":10000,"d":"$10,000.00"}]
[null,"PREMIOS",null,null,0,0,{"v":7500,"d":"$7,500.00"},{"v":7500,"d":"$7,500.00"}]
[null,"ANIVERSARIO",null,null,0,0,{"v":20000,"d":"$20,000.00"},{"v":20000,"d":"$20,000.00"}]
[null,"PREMIOS",null,null,0,0,{"v":7500,"d":"$7,500.00"},{"v":7500,"d":"$7,500.00"}]
[null,"PRESENTACION DE PROYECTOS",null,null,0,0,{"v":10000,"d":"$10,000.00"},{"v":10000,"d":"$10,000.00"}]
[null,"Garantizar la equidad de genero e inculcar valores de convivencia mediante la ayuda de cursos de equidad de genero y sexualidad.","UNIDAD DE MEDIDA","META 2020"," FEDERAL"," ESTATAL","PROPIO","TOTAL"]
[null,"Realizar cursos de equidad de genero para todo el alumnado y personal que labora dentro de la Universidad.","curso",6,0,0,{"v":15000,"d":"$15,000.00"},{"v":15000,"d":"$15,000.00"}]
[null,"Atender y garantizar el respeto a la mujer en todos los servicios educativos que ofrece la Universidad.","informe",3,0,0,0,0]
[null,"Iniciar los procesos de certificación en equidad de genero ","informe",2,0,0,0,0]
[null,"Implementar capacitaciones al personal docente y administrativo para el desarrollo de sus actividades encomendadas en la Universidad Tecnológica de la Tierra Caliente.","UNIDAD DE MEDIDA","META 2020"," FEDERAL"," ESTATAL","PROPIO","TOTAL"]
[36310,"Participar en el 26 congreso de administración","Evento (Informe)",1,0,0,{"v":25000,"d":"$25,000.00"},{"$f":"SUM(E53:G53)","v":{"v":25000,"d":"$25,000.00"}}]
[33400,"Capacitar al personal docente en competencia educativas, certificaciones de office, ","curso",3,{"v":17500,"d":"$17,500.00"},{"v":2500,"d":"$2,500.00"},{"v":2001,"d":"$2,001.00"},{"$f":"SUM(E54:G54)","v":{"v":22001,"d":"$22,001.00"}}]
[33400,"Capacitar al personal administrativo y docente en temas de liderazgo, trabajo en equipo, equidad, toma de decisiones, entre otros.","curso",5]
[null,"Equipar por lo menos un laboratorio con equipos y herramientas de bajo costo para las prácticas de nuestros alumnos.","UNIDAD DE MEDIDA","META 2020"," FEDERAL"," ESTATAL","PROPIO","TOTAL"]
[21401,"Suministrar con equipo informático el laboratorio de tecnologías","Informe",2,{"v":30000,"d":"$30,000.00"},{"v":1999,"d":"$1,999.00"},0,{"$f":"SUM(E57:G57)","v":{"v":31999,"d":"$31,999.00"}}]
[51500,"Suministrar con tres proyectores para la carrera de administración y energías renovables.","Informe",3,null,null,{"v":25000,"d":"$25,000.00"},{"$f":"SUM(E58:G58)","v":{"v":25000,"d":"$25,000.00"}}]
[51500,"Adquirir una impresora 3D para la carrera de TIC-SI","Informe",1,0,0]
[null,"Contar con una licencia de software para 380 egresados para concluir su trámite de titulación electrónica ante Dirección General de Profesiones.","UNIDAD DE MEDIDA","META 2020"," FEDERAL"," ESTATAL","PROPIO","TOTAL"]
[59000,"Adquirir una licencia de Software para concluir el proceso de 380 egresados ante Dirección General de Profesiones","Egresados",380,0,0,{"v":56000,"d":"$56,000.00"},{"v":56000,"d":"$56,000.00"}]
[null,"Contar con una unidad automotriz para uso de comisiones del personal administrativo y docente, será usado para uso institucional.","UNIDAD DE MEDIDA","META 2020"," FEDERAL"," ESTATAL","PROPIO","TOTAL"]
[54000,"Adquirir una unidad automotriz para comisiones administrativas.","Automóvil",1,0,0,{"v":160000,"d":"$160,000.00"},{"v":160000,"d":"$160,000.00"}]
[null,"Difundir y promocionar los servicios educativos de la Universidad Tecnológica de la Tierra Caliente, mediante los medios de comunicación en la región: Televisión, radio y periódico; así como el uso del internet y medios impresos.","UNIDAD DE MEDIDA","META 2020"," FEDERAL"," ESTATAL","PROPIO","TOTAL"]
[36000,"\nDifusión en radio, periódico, televisión, internet y otros medios impresos\n","Medio de difusión",45,{"v":20000,"d":"$20,000.00"},{"v":12000,"d":"$12,000.00"},{"v":45000,"d":"$45,000.00"},{"$f":"SUM(E65:G65)","v":{"v":77000,"d":"$77,000.00"}}]
[null,"Contar con material de oficina necesario para facilitar el trabajo del personal administrativo.","UNIDAD DE MEDIDA","META 2020"," FEDERAL"," ESTATAL","PROPIO","TOTAL"]
[21000,"Contar con el material necesario de oficina para facilitar el trabajo en las áreas administrativas.","Informe de material",100,{"v":109200,"d":"$109,200.00"},{"v":20499,"d":"$20,499.00"},{"v":21377.01,"d":"$21,377.01"},{"$f":"SUM(E67:G67)","v":{"v":151076.01,"d":"$151,076.01"}}]
[null,"Contar con los servicios generales básicos suficientes para mantener tres edificios de la Universidad Tecnológica como: agua, electricidad, internet, saneamiento, entre otros.","UNIDAD DE MEDIDA","META 2020"," FEDERAL"," ESTATAL","PROPIO","TOTAL"]
[31000,"Contar con servicios generales básicos suficientes para mantener a los tres edificios en agua, electricidad, internet, saneamiento y otros. ","Informe de servicios",3,{"v":379536,"d":"$379,536.00"},{"v":208818,"d":"$208,818.00"},{"v":63075.61,"d":"$63,075.61"},{"$f":"SUM(E69:G69)","v":{"v":651429.61,"d":"$651,429.61"}}]
[null,"Total",null,null,{"$f":"SUM(E69,E51,E50,E49,E37,E20,E67,E65,E63,E61,E59,E58,E57,E55,E54,E53,E42,E38,E35,E30,E28,E27,E26,E25,E21,E19,E17,E15,E13,E12,E10,E7,E4,E3)","v":{"v":579245.2,"d":"$579,245.20"}},{"$f":"SUM(F69,F51,F50,F49,F37,F20,F67,F65,F63,F61,F59,F58,F57,F55,F54,F53,F42,F38,F35,F30,F28,F27,F26,F25,F21,F19,F17,F15,F13,F12,F10,F7,F4,F3)","v":{"v":260825.2,"d":"$260,825.20"}},{"v":679510.39,"d":"$679,510.39"},{"$f":"SUM(H69,H51,H50,H49,H37,H20,H67,H65,H63,H61,H59,H58,H57,H55,H54,H53,H42,H38,H35,H30,H28,H27,H26,H25,H21,H19,H17,H15,H13,H12,H10,H7,H4,H3)","v":{"v":1519580.79,"d":"$1,519,580.79"}}]

{"sheet":"PBR","index":1,"n_rows":128,"n_cols":15,"rows_kept":128,"merged":[[0,1,0,6],[0,9,0,14],[1,1,1,14],[2,1,2,14],[3,1,3,6],[3,7,3,14],[4,1,4,6],[4,7,4,14],[5,1,5,6],[5,7,5,14],[6,1,6,14],[7,1,7,14],[8,1,8,14],[9,1,9,14],[10,1,10,14],[11,1,11,14],[12,1,12,14],[13,1,13,14],[14,1,14,14],[15,1,15,14],[16,1,16,14],[17,1,17,14],[18,1,18,3],[18,4,18,14],[19,1,19,3],[19,4,19,14],[20,1,20,3],[20,4,20,14],[21,1,21,3],[21,4,21,14],[22,1,22,14],[23,1,23,4],[23,7,23,10],[23,11,23,14],[24,1,24,2],[24,5,24,6],[25,1,25,2],[25,5,25,6],[26,1,26,2],[26,5,26,6],[27,1,27,2],[28,1,29,1],[28,2,29,2],[28,3,29,3],[28,4,29,4],[28,5,29,5],[28,6,28,9],[28,10,28,13],[28,14,29,14],[44,3,45,3],[44,4,45,4],[63,11,64,11],[63,12,64,12],[63,13,64,13],[63,14,64,14],[79,1,79,14],[80,1,80,14],[81,1,81,2],[81,3,81,14],[82,1,82,2],[82,3,82,14],[83,1,83,2],[83,3,83,14],[84,1,84,14],[85,1,85,2],[85,3,85,14],[86,1,86,2],[86,3,86,14],[87,1,87,2],[87,3,87,14],[88,1,88,14],[89,1,89,2],[89,3,89,14],[90,1,90,2],[90,3,90,14],[91,1,91,2],[91,3,91,14],[92,1,92,14],[93,1,93,2],[93,3,93,14],[94,1,94,2],[94,3,94,14],[95,1,95,2],[95,3,95,14],[96,1,96,14],[97,1,97,2],[97,3,97,14],[98,1,98,2],[98,3,98,14],[99,1,99,2],[99,3,99,14],[100,1,100,14],[101,1,101,2],[101,3,101,14],[102,1,102,2],[102,3,102,14],[103,1,103,2],[103,3,103,14],[104,1,104,14],[105,1,105,2],[105,3,105,14],[106,1,106,2],[106,3,106,14],[107,1,107,2],[107,3,107,14],[108,1,108,14],[109,1,109,2],[109,3,109,14],[110,1,110,2],[110,3,110,14],[111,1,111,2],[111,3,111,14],[112,1,112,14],[113,1,113,2],[113,3,113,14],[114,1,114,2],[114,3,114,14],[115,1,115,2],[115,3,115,14],[116,1,116,14],[117,1,117,2],[117,3,117,14],[118,1,118,2],[118,3,118,14],[119,1,119,2],[119,3,119,14],[120,1,120,14],[121,1,121,2],[121,3,121,14],[122,1,122,2],[122,3,122,14],[123,1,123,2],[123,3,123,14],[124,1,124,14],[125,1,125,2],[125,3,125,14],[126,1,126,2],[126,3,126,14],[127,1,127,2],[127,3,127,14]]}
[null,"Avance en los Indicadores de los Programas presupuestarios de la UNIVERSIDAD TECNOLÓGICA DE LA TIERRA CALIENTE",{"$nulls":7},"Ejercicio Fiscal 2020"]
[null,"  "]
[null,"Datos del Programa"]
[null,"Programa presupuestario",{"$nulls":5},"Programa Operatico Anual 2020"]
[null,"Unidad responsable",{"$nulls":5},"Planeación"]
[null,"Enfoques ",{"$nulls":5},"ser una institución de educación superior de vanguardia buscando con responsabilidad y calidad el reconocimiento social y considerada como detonante del desarrollo, académico, profesional, tecnológico y cultural; a través de nuestros egresados reconocidos por su formación integral, coadyuvando al progreso y desarrollo de nuestra región, estado y país. "]
[null,"Alineación al Plan Nacional de Desarrollo 2013-2018"]
[null,"Plan Nacional de Desarrollo 2019 - 2024"]
[null,"1. Política y gobierno, eje Garantizar el empleo, educación, salud y bienestar."]
[null,"Plan Estatal de Desarrollo"]
[null,"Programa"]
[null,"3. Guerrero Socialmente Comprometido"]
[null,"Objetivo "]
[null,"3.8. Impulsar la educación de calidad para todos.\n3.9. Generar las condiciones necesarias para impulsar el desarrollo de una vida digna"]
[null,"Estrategia"]
[null,"Estrategia: 3.8.3. Garantizar que los planes y programas de estudio sean pertinentes y contribuyan a que los estudiantes avancen exitosamente en su trayectoria educativa, al tiempo que desarrollen aprendizajes significativos y competencias que le sirvan al árbol de la vida; \nestrategia 3.8.5. Disminuir la deserción escolar y fomentar la conclusión de los estudios en sus diferentes niveles.\nEstrategia 3.9.1. Colocar a la cultura como un elemento prioritario para el desarrollo integral de los guerrerenses;\n y estrategia 3.9.5. Diseñar programas de actividad física y deportiva para atender las necesidades de la población."]
[null,"Línea de Acción: Fomentar desde la educación básica los conocimientos, las habilidades y las aptitudes que estimulen la investigación y la innovación científicas y tecnológicas.\nAmpliar y fortalecer la operaciones de los sistemas de apoyo tutorial, con el fin de reducir los niveles de deserción de los estudiantes y favorecer la conclusión oportuna de sus estudios.\nAsegurar que a cultura se integre al proceso educativo de la población en sus tiempos libres y de recreación como una forma de acrecentar los valores, las costumbres, el deporte, los derechos, la equidad de género, y la ciudadanía.\nPromover la práctica deportiva con un enfoque que fomente los valores como el trabajo en equipo, el respeto a las reglas y la obtención del éxito mediante el esfuerzo individual y colectivo."]
[null,"Clasificación Funcional"]
[null,"Finalidad (Fin)",null,null,"Ser una Universidad Tecnologica reconocida por la sociedad y considerada como detonante del desarrollo, académico, profesional, tecnológico y cultural; a través de nuestros egresados reconocidos por su formación integral, coadyuvando al progreso y desarrollo de nuestra región, estado y país. "]
[null,"Función(Proposito)",null,null,"La Universidad Tecnológica de la Tierra Caliente sea la primara opción de estudios para jóvenes que están a punto de concluir sus estudios a nivel media superior."]
[null,"Subfunción",null,null,"Mejorar la calidad educativa de la Universidad Tecnológica de la Tierra Caliente y potencializar el desarrollo profesional de nuestros alumnos."]
[null,"Actividad Institucional",null,null,"Servicio  educativo de calidad, logrando el recocimiento de la sociedad."]
[null,"Presupuesto"]
[{"$nulls":7},"Avance trimestral ejercidó",{"$nulls":3},"Avance trimestral del presupuesto"]
[null,"Presupesto Federal",null,"Presupuesto Estatal ","Presupuesto ingresos propios","Presupuesto total",null,"enero . Marzo"," Abril - junio","julio - septiembre","octubre - diciembre","enero . Marzo"," Abril - junio","julio - septiembre","octubre - diciembre"]
[null,{"v":4269209,"d":"$4,269,209.00"},null,{"v":5588700,"d":"$5,588,700.00"},{"v":2000000,"d":"$2,000,000.00"},{"$f":"SUM(B26:E26)","v":{"v":11857909,"d":"$11,857,909.00"}}]
[null,"Presupesto Federal Modificado",null,"Presupuesto Estatal Modificado","Presupuesto ingresos propios Modificado","Presupuesto total Modificado",null,"enero . Marzo"," Abril - junio","julio - septiembre","octubre - diciembre","enero . Marzo"," Abril - junio","julio - septiembre","octubre - diciembre"]
[]
[null,"num","Nombre y descripción de la obra y/o accion.","Nombre del indicador","Metodo de calculo","Cantidad","Calendario trimestral de metas",{"$nulls":3},"Calendario del gasto trimestral",{"$nulls":3},"previsión del gasto"]
[{"$nulls":6},"enero . Marzo"," Abril - junio","julio - septiembre","octubre - diciembre","enero . Marzo"," Abril - junio","julio - septiembre","octubre - diciembre"]
[null,null,"Garantizar que los planes y programas de estudios sean pertinentes y contribuyan a que los estudiantes puedan avanzar exitosamente en su trayectoria educativa, al tiempo que desarrollen aprendizajes significativos y competencias que les sirvan a lo largo de la vida.","Porcentaje de programas educativos pertinente","(Total de programas educativos/ total de programas educativos pertinentes) *100",3,0,0,1,2,0,{"$f":"SUM(L32:L34)","v":{"v":5000,"d":"$5,000.00"}},{"$f":"SUM(M32:M34)","v":{"v":5000,"d":"$5,000.00"}},0,{"$f":"SUM(K31:N31)","v":{"v":10000,"d":"$10,000.00"}}]
[null,null,"Estudios de factibilidad de los programas educativos","Porcentaje de estudios de factibilidad elaborados","(Total de estudios de factibilidad elaborados/ total de estudios de factibilidad programados) *100",3,null,1,2,0,0,{"v":3000,"d":"$3,000.00"},{"v":3000,"d":"$3,000.00"},0,{"$f":"SUM(K32:N32)","v":{"v":6000,"d":"$6,000.00"}}]
[null,null,"Análisis Situacional del Trabajo (AST) con ayuda del comité de pertinencia","Porcentaje de AST aprobados por el comité","(Total de AST aprobados/total de programas educativos)*100",3,0,0,1,2,0,{"v":1500,"d":"$1,500.00"},{"v":1500,"d":"$1,500.00"},0,{"$f":"SUM(K33:N33)","v":{"v":3000,"d":"$3,000.00"}}]
[null,null,"Aprobación de los programas educativos por parte del comité de pertinencia","Porcentaje de programas educativos pertinente","(Total de programas educativos/ total de programas educativos pertinentes) *100",3,0,0,1,2,0,{"v":500,"d":"$500.00"},{"v":500,"d":"$500.00"},0,{"$f":"SUM(K34:N34)","v":{"v":1000,"d":"$1,000.00"}}]
[null,null,"Formar Profesionistas capacitados para el desarrollo de sus actividades y posicionar a los egresados en el sector productivo.","Porcentaje de cumplimiento de los planes de estudios","Total de los planes de estudios cumplidos/total del plan de estudios)*100",30,30,30,30,null,{"$f":"SUM(K36:K40)","v":{"v":5000,"d":"$5,000.00"}},{"$f":"SUM(L36:L40)","v":{"v":21000,"d":"$21,000.00"}},{"$f":"SUM(M36:M40)","v":{"v":32500,"d":"$32,500.00"}},{"$f":"SUM(N36:N40)","v":{"v":26000,"d":"$26,000.00"}},{"$f":"SUM(O36:O40)","v":{"v":84500,"d":"$84,500.00"}}]
[null,null,"Cumplir con el plan de estudios a nivel Técnico Superior Universitario de 70 practica y 30% teoría.","Porcentaje de prácticas realizadas","Total de prácticas realizadas/ total de prácticas programadas)*100",30,null,30,30,30,null,{"v":5000,"d":"$5,000.00"},{"v":6000,"d":"$6,000.00"},null,{"$f":"SUM(K36:N36)","v":{"v":11000,"d":"$11,000.00"}}]
[null,null,"Realizar viajes de estudios ","Porcentaje de viajes de estudios","Total de viajes de estudios realizados/ total de matrícula atendida)*100",5,1,1,2,1,null,{"v":10000,"d":"$10,000.00"},{"v":19000,"d":"$19,000.00"},{"v":20000,"d":"$20,000.00"},{"$f":"SUM(K37:N37)","v":{"v":49000,"d":"$49,000.00"}}]
[null,null,"Firma de convenios de colaboración con el sector productivo","Porcentaje de convenios firmados","Total de convenios firmados/total de convenios programados)*100",40,10,10,10,10,{"v":5000,"d":"$5,000.00"},{"v":5000,"d":"$5,000.00"},{"v":5000,"d":"$5,000.00"},{"v":5000,"d":"$5,000.00"},{"$f":"SUM(K38:N38)","v":{"v":20000,"d":"$20,000.00"}}]
[null,null,"Seguimiento al egresado a nivel Técnico Superior Universitario","Porcentaje de egresados encontrados","Total de egresados/ total de egresados encontrados)*100",{"v":0.8,"d":"80%"},0,{"v":0.8,"d":"80%"},{"v":0.8,"d":"80%"},0,0,{"v":1000,"d":"$1,000.00"},{"v":2500,"d":"$2,500.00"},{"v":1000,"d":"$1,000.00"},{"$f":"SUM(K39:N39)","v":{"v":4500,"d":"$4,500.00"}}]
[null,null,"Implementación de una bolsa de trabajo para nuestros egresados","Porcentaje de egresados colocados con ayuda de la bolsa de trabajo.","(total de egresados/Total de egresados colocados por la bolsa de trabajo de UT)*100",{"v":0.15,"d":"15%"},0,{"v":0.15,"d":"15%"},{"v":0.15,"d":"15%"},0,0,0,0,0,{"$f":"SUM(K40:N40)","v":0}]
[null,null,"Asegurar una mayor cobertura con respecto al egreso del nivel medio superior en la región, incrementando la cobertura en Técnico Superior Universitario.","Porcentaje de alumnos de nuevo ingreso ","(Total de alumnos de nuevo ingreso/Total de alumnos programados)*100",225,0,0,225,0,{"$f":"SUM(K42:K44)","v":{"v":22000,"d":"$22,000.00"}},{"$f":"SUM(L42:L44)","v":{"v":17000,"d":"$17,000.00"}},{"$f":"SUM(M42:M44)","v":{"v":7000,"d":"$7,000.00"}},{"$f":"SUM(N42:N44)","v":0},{"$f":"SUM(K41:N41)","v":{"v":46000,"d":"$46,000.00"}}]
[null,null,"Visitar 30 escuelas de nivel media superior de la región.","Porcentaje de escuelas visitadas","(Total de escuelas visitadas/total de escuelas programadas)*100",30,5,15,10,0,{"v":6000,"d":"$6,000.00"},{"v":10000,"d":"$10,000.00"},{"v":5000,"d":"$5,000.00"},0,{"v":21000,"d":"$21,000.00"}]
[null,null,"Participar en las expo-profesionales que realizan las preparatorias de la región.","Porcentaje de expo-profesionales ","Total de participaciones en  expo-profesionales/total de preparatorias en la región)*100",5,5,0,0,0,{"v":16000,"d":"$16,000.00"},{"v":4000,"d":"$4,000.00"},0,0,{"v":20000,"d":"$20,000.00"}]
[null,null,"Visitar puntos estratégicos de los nueve municipios de la región como plazas, tianguis y ferias.","Porcentaje de visitas realizadas","(Total de  alumnos inscritos con elección de visitas en plazas/total de lugares visitados)*100",9,0,5,4,0,0,{"v":3000,"d":"$3,000.00"},{"v":2000,"d":"$2,000.00"},0,{"v":5000,"d":"$5,000.00"}]
[null,null,"Atender el 100% de nuestros alumnos en tutorias por cuatrimestre","Porcentaje de alumnos atendidos","Total de alumnos, por total de alumnos atendidos",{"v":1,"d":"100%"},null,100,100,100,0,0,0,0,0]
[null,null,"Cumplir con las tutorias el 100% en cda cuatrimestre",null,null,3,null,1,1,1,0,0,0,0,0]
[null,null,"Disminuir el abandono escolar, mejorando la eficiencia terminal y aumentar la tasa de transición en la continuidad de estudios a nivel Ingeniería.","Porcentaje de deserción escolar","(total de matrícula a inicio de cuatrimestre/ total de matrícula a final de cuatrimestre)*100",{"v":0.08,"d":"8%"},{"v":0.08,"d":"8%"},{"v":0.08,"d":"8%"},{"v":0.08,"d":"8%"},{"v":0.08,"d":"8%"},0,0,null,0,0]
[null,null,"Implementación de tutorías y asesorías","Porcentaje de tutorías y asesorías realizadas","(total de tutorías y asesorías programadas/total de asesorías y tutorías realizadas)*100",3,0,1,1,1,0,0,null,0,0]
[null,null,"Atención alumnos vulnerables (académico, socioeconómico y psicológico)","Porcentaje de alumnos vulnerables atendidos","(Total de alumnos vulnerables/Total de alumnos vulnerables atendidos)*100",450,null,100,100,250,0,0,null,0,0]
[null,null,"Otorgar becas alimenticias por cuatrimestre alumnos en situación económica.","Porcentaje de becas otorgadas","Total de alumnos vulnerables/Total de becas otorgadas)*100",30,10,10,10,0,0,0,null,0,0]
[null,null,"Otorgar becas de colegiatura alumnos destacados académicamente.","Porcentaje de becas otorgadas por promedio","(total de matrícula cuatrimestral/ total de alumnos becados)*100",{"v":1.8,"d":"180%"},{"v":0.6,"d":"60%"},{"v":0.6,"d":"60%"},{"v":0.6,"d":"60%"},0,0,0,null,0,{"$f":"SUM(K51:N51)","v":0}]
[null,null,"Implementar programas de actividades culturales y deportivas diferenciados para atender las diversas necesidades de la población estudiantil.","Porcentaje de eventos realizados","(total de eventos realizados/total de participación del alumnado)*100",{"v":0.95,"d":"95%"},{"v":0.95,"d":"95%"},{"v":0.95,"d":"95%"},{"v":0.95,"d":"95%"},{"v":0.95,"d":"95%"},{"$f":"SUM(K53:K57)","v":{"v":84328.77,"d":"$84,328.77"}},{"$f":"SUM(L53:L57)","v":{"v":26873.2,"d":"$26,873.20"}},{"$f":"SUM(M53:M57)","v":{"v":35873.2,"d":"$35,873.20"}},{"$f":"SUM(N53:N57)","v":{"v":17500,"d":"$17,500.00"}},{"$f":"SUM(K52:N52)","v":{"v":164575.16999999998,"d":"$164,575.17"}}]
[null,null,"Participar en el encuentro deportivo cultural de Universidades Tecnológicas","Participar en el evento deportivo de UT¨s","(Total de alumnos participante/total de selecciones)*100",1,1,0,0,0,{"v":79328.77,"d":"$79,328.77"},0,0,0,{"$f":"SUM(K53:N53)","v":{"v":79328.77,"d":"$79,328.77"}}]
[null,null,"Integrar tres talleres: Un deportivo, un cultural y Artístico","Porcentaje de alumnos que participan en los talleres","(total de alumnos participante en los talleres/total de alumnos inscritos)*100",3,0,1,2,0,0,{"v":3873.2,"d":"$3,873.20"},{"v":2873.2,"d":"$2,873.20"},0,{"v":6746.4,"d":"$6,746.40"}]
[null,null,"Participar en eventos deportivos","Porcentaje de eventos deportivos realizados","(total de eventos realizados/total de eventos programados)*100",4,0,2,2,0,0,{"v":2500,"d":"$2,500.00"},{"v":2500,"d":"$2,500.00"},0,{"v":5000,"d":"$5,000.00"}]
[null,null,"Participar en eventos culturales (Desfiles, culturales)","Porcentaje de eventos culturales realizados","(total de eventos culturales realizados/total de alumnos participante)*100",8,2,1,1,2,{"v":5000,"d":"$5,000.00"},{"v":3000,"d":"$3,000.00"},{"v":3000,"d":"$3,000.00"},{"v":7500,"d":"$7,500.00"},{"v":18500,"d":"$18,500.00"}]
[null,null,"Realizar eventos internos como: aniversario, Día del TSU, presentación de proyectos","Porcentaje de eventos internos realizados","(Total de eventos internos realizados/Total de eventos programados)*100",4,0,1,2,1,0,{"v":17500,"d":"$17,500.00"},{"v":27500,"d":"$27,500.00"},{"v":10000,"d":"$10,000.00"},{"v":55000,"d":"$55,000.00"}]
[null,null,"Garantizar la equidad de genero e inculcar valores de convivencia mediante la ayuda de cursos de equidad de genero y sexualidad.","Porcentaje de alumnos atendidos","(total de alumnos por total de alumnos atendidos)",{"v":1,"d":"100%"},100,100,100]
[null,null,"Realizar cursos de equidad de genero para todo el alumnado y personal que labora dentro de la Universidad.","Porcentaje de cursos realizados","Total de alumnos participante en los cursos por cursos realizados",6,2,null,2,2]
[null,null,"Atender y garantizar el respeto a la mujer en todos los servicios educativos que ofrece la Universidad.","Porcentaje de alumnos atendidos por matricula total","(total de alumnos por total de alumnos atendidos)",3,null,1,1,1]
[null,null,"Iniciar los procesos de certificación en equidad de genero ","Requisitos realizados ","Certificacion lograda o no.",1,null,null,1,1]
[null,null,"Implementar capacitaciones al personal docente y administrativo para el desarrollo de sus actividades encomendadas en la Universidad Tecnológica de la Tierra Caliente.","Porcentaje de eventos realizados","(Total de personal capacitado/Total de eventos realizados)*100",{"v":1,"d":"100%"},null,{"v":1,"d":"100%"},{"v":1,"d":"100%"},{"v":1,"d":"100%"},{"$f":"SUM(K63:K65)","v":0},{"$f":"SUM(L63:L65)","v":{"v":5000,"d":"$5,000.00"}},{"$f":"SUM(M63:M65)","v":{"v":35000,"d":"$35,000.00"}},{"$f":"SUM(N63:N65)","v":{"v":7001,"d":"$7,001.00"}},{"v":47001,"d":"$47,001.00"}]
[null,null,"Participar en el 26 congreso de administración","Porcentaje de participación de nuestros profesores.","(Total de profesores participante de la UT/ total de profesores que asistieron)*100",1,0,0,1,0,0,null,{"v":25000,"d":"$25,000.00"},0,{"v":25000,"d":"$25,000.00"}]
[null,null,"Capacitar al personal docente en competencia educativas, certificaciones de office, ","Porcentaje de profesores capacitados","(Total de profesores/ Total de profesores capacitados)*100",3,0,1,1,1,0,{"v":5000,"d":"$5,000.00"},{"v":10000,"d":"$10,000.00"},{"v":7001,"d":"$7,001.00"},{"v":22001,"d":"$22,001.00"}]
[null,null,"Capacitar al personal administrativo y docente en temas de liderazgo, trabajo en equipo, equidad, toma de decisiones, entre otros.","Porcentaje de personal capacitado","(Total de personal/Total de personal capacitado)/*100",5,0,1,2,2,0]
[null,null,"Equipar por lo menos un laboratorio con equipos y herramientas de bajo costo para las prácticas de nuestros alumnos.","Porcentaje de prácticas de laboratorio","(Total de prácticas realizadas/Total de prácticas programadas)*100",{"v":0.35,"d":"35%"},0,{"v":0.35,"d":"35%"},{"v":0.35,"d":"35%"},0,{"$f":"SUM(K67:K69)","v":0},{"$f":"SUM(L67:L69)","v":0},{"$f":"SUM(M67:M69)","v":{"v":35000,"d":"$35,000.00"}},{"$f":"SUM(N67:N69)","v":{"v":21999,"d":"$21,999.00"}},{"v":56999,"d":"$56,999.00"}]
[null,null,"Suministrar con equipo informático el laboratorio de tecnologías","Porcentaje de prácticas de laboratorio","(Total de prácticas realizadas/Total de prácticas programadas)*100",2,1,0,1,0,0,null,{"v":20000,"d":"$20,000.00"},{"v":11999,"d":"$11,999.00"},{"v":31999,"d":"$31,999.00"}]
[null,null,"Suministrar con tres proyectores para la carrera de administración y energías renovables.","Porcentaje de prácticas de laboratorio","(Total de prácticas realizadas/Total de prácticas programadas)*100",3,0,1,2,0,0,null,{"v":15000,"d":"$15,000.00"},0,{"v":15000,"d":"$15,000.00"}]
[null,null,"Adquirir una impresora 3D para la carrera de TIC-SI","Porcentaje de prácticas de laboratorio","(Total de prácticas realizadas/Total de prácticas programadas)*100",1,0,1,0,0,0,null,0,{"v":10000,"d":"$10,000.00"},{"v":10000,"d":"$10,000.00"}]
[null,null,"Contar con una licencia de software para 380 egresados para concluir su trámite de titulación electrónica ante Dirección General de Profesiones.","Porcentaje de titulados con cedula profesional","Total de egresados/Total de egresados titulados)*99",380,70,100,100,110,{"v":9000,"d":"$9,000.00"},{"v":15000,"d":"$15,000.00"},{"v":15000,"d":"$15,000.00"},{"v":17000,"d":"$17,000.00"},{"v":56000,"d":"$56,000.00"}]
[null,null,"Adquirir una licencia de Software para concluir el proceso de 380 egresados ante Dirección General de Profesiones","Porcentaje de titulados con cedula profesional","Total de egresados/Total de egresados titulados)*100",380,70,100,100,110,{"v":9000,"d":"$9,000.00"},{"v":15000,"d":"$15,000.00"},{"v":15000,"d":"$15,000.00"},{"v":17000,"d":"$17,000.00"},{"v":56000,"d":"$56,000.00"}]
[null,null,"Contar con una unidad automotriz para uso de comisiones del personal administrativo y docente, será usado para uso institucional.","Porcentaje de ahorro en viáticos (Gasolina)","(Total de viáticos programado/Total de viáticos gastados)*99",1,0,1,0,0,0,0,0,{"v":160000,"d":"$160,000.00"},{"v":160000,"d":"$160,000.00"}]
[null,null,"Adquirir una unidad automotriz para comisiones administrativas.","Porcentaje de ahorro en viáticos (Gasolina)","(Total de viáticos programado/Total de viáticos gastados)*100",1,0,1,0,0,0,0,0,{"v":160000,"d":"$160,000.00"},{"v":160000,"d":"$160,000.00"}]
[null,null,"Difundir y promocionar los servicios educativos de la Universidad Tecnológica de la Tierra Caliente, mediante los medios de comunicación en la región: Televisión, radio y periódico; así como el uso del internet y medios impresos.","Porcentaje de medios de difusión realizados","(Total de alumnos inscritos de nuevo ingreso/Total de alumnos inscritos de nuevo ingreso por elección de difusión en radio)*100",45,10,20,15,0,{"v":15000,"d":"$15,000.00"},{"v":30000,"d":"$30,000.00"},{"v":22000,"d":"$22,000.00"},{"v":10000,"d":"$10,000.00"},{"v":77000,"d":"$77,000.00"}]
[null,null,"Difusión en radio, periódico, televisión, internet y otros medios impresos","Porcentaje de medios de difusión realizados","(Total de medios de difusión realizados/Total de medios de comunicación programados)*100",45,10,20,15,0,{"v":15000,"d":"$15,000.00"},{"v":30000,"d":"$30,000.00"},{"v":22000,"d":"$22,000.00"},{"v":10000,"d":"$10,000.00"},{"v":77000,"d":"$77,000.00"}]
[null,null,"Contar con material de oficina necesario para facilitar el trabajo del personal administrativo.","Porcentaje de ahorro de material de suministro","(Total de suministros programados/Total de suministros gastados)*100",{"v":1,"d":"100%"},{"v":1,"d":"100%"},{"v":1,"d":"100%"},{"v":1,"d":"100%"},{"v":1,"d":"100%"},{"v":35000,"d":"$35,000.00"},{"v":40000,"d":"$40,000.00"},{"v":41076.01,"d":"$41,076.01"},{"v":35000,"d":"$35,000.00"},{"v":151076.01,"d":"$151,076.01"}]
[null,null,"Contar con el material necesario de oficina para facilitar el trabajo en las áreas administrativas.","Porcentaje de ahorro de material de suministro","(Total de suministros programados/Total de suministros gastados)*100",{"v":1,"d":"100%"},{"v":1,"d":"100%"},{"v":1,"d":"100%"},{"v":1,"d":"100%"},{"v":1,"d":"100%"},{"v":35000,"d":"$35,000.00"},{"v":40000,"d":"$40,000.00"},{"v":41076.01,"d":"$41,076.01"},{"v":35000,"d":"$35,000.00"},{"v":151076.01,"d":"$151,076.01"}]
[null,null,"Contar con los servicios generales básicos suficientes para mantener tres edificios de la Universidad Tecnológica como: agua, electricidad, internet, saneamiento, entre otros.","Porcentaje de ahorro de servicios generales básicos","(Total de servicios básicos programados/Total de servicios generales gastados)*100",{"v":1,"d":"100%"},{"v":1,"d":"100%"},{"v":1,"d":"100%"},{"v":1,"d":"100%"},{"v":1,"d":"100%"},{"v":160000,"d":"$160,000.00"},{"v":165500,"d":"$165,500.00"},{"v":165929.61,"d":"$165,929.61"},{"v":160000,"d":"$160,000.00"},{"v":651429.61,"d":"$651,429.61"}]
[null,null,"Contar con servicios generales básicos suficientes para mantener a los tres edificios en agua, electricidad, internet, saneamiento y otros. ","Porcentaje de ahorro de servicios generales básicos","(Total de servicios básicos programados/Total de servicios generales gastados)*100",{"v":1,"d":"100%"},{"v":1,"d":"100%"},{"v":1,"d":"100%"},{"v":1,"d":"100%"},{"v":1,"d":"100%"},{"v":160000,"d":"$160,000.00"},{"v":165500,"d":"$165,500.00"},{"v":165929.61,"d":"$165,929.61"},{"v":160000,"d":"$160,000.00"},{"v":651429.61,"d":"$651,429.61"}]
[null,"Justificación de diferencia de avances con respecto a las metas programadas"]
[null,"1.- Garantizar que los planes y programas de estudios sean pertinentes y contribuyan a que los estudiantes puedan avanzar exitosamente en su trayectoria educativa, al tiempo que desarrollen aprendizajes significativos y competencias que les sirvan a lo largo de la vida."]
[null,"Causa:",null,"El poco interés del sector productivo en la participación del Comité de pertinencia."]
[null,"Efecto:",null,"Que no se integre el comité de pertinencia, y no se garantice la pertinencia de los programas educativos que oferta la UTTC."]
[null,"Otros Motivos:",null,"No cumplir con los estudios de factibilidad o que estos mismos no tenga los resultados esperados."]
[null," 2.-  Formar Profesionistas capacitados para el desarrollo de sus actividades y posicionar a los egresados en el sector productivo."]
[null,"Causa:",null,"No cumplir con los planes de estudios de cada programa educativo a nivel Técnico Superior Universitario"]
[null,"Efecto:",null,"No garantizar el servicio educativo"]
[null,"Otros Motivos:",null,"No cumplir con los procesos de enseñanza aprendizaje."]
[null," 3.-  Asegurar una mayor cobertura con respecto al egreso del nivel medio superior en la región, incrementando la cobertura en Técnico Superior Universitario."]
[null,"Causa:",null,"Que la Universidad Tecnológica de la Tierra Caliente no sea una opción de estudios para futuros egresados de nivel media superior."]
[null,"Efecto:",null,"No contar con alumnos de nuevo ingreso."]
[null,"Otros Motivos:",null,"Que la mayoría de nuestros programas educativos no sean los adecuados a las necesidades del sector."]
[null,"4.- Disminuir el abandono escolar, mejorando la eficiencia terminal y aumentar la tasa de transición en la continuidad de estudios a nivel Ingeniería."]
[null,"Causa:",null,"Que alumnos con situaciones vulnerables deserten "]
[null,"Efecto:",null,"Alto índice de deserción escolar."]
[null,"Otros Motivos:",null,"Que alumnos de nuevo ingreso que tome como última opción  a la Universidad sean los primeros en abandonar sus estudios."]
[null,"5.- Implementar programas de actividades culturales y deportivas diferenciados para atender las diversas necesidades de la población estudiantil."]
[null,"Causa:",null,"Poca participación del alumnado"]
[null,"Efecto:",null,"Que no exista una integración en los talleres"]
[null,"Otros Motivos:",null,"No participar en eventos culturales"]
[null,"6.- Implementar capacitaciones al personal docente y administrativo para el desarrollo de sus actividades encomendadas en la Universidad Tecnológica de la Tierra Caliente."]
[null,"Causa:",null,"Que el personal docente y administrativo no participe en los cursos"]
[null,"Efecto:",null,"Que sigan existiendo problemáticas de trabajo en equipo."]
[null,"Otros Motivos:"]
[null,"7.-Equipar por lo menos un laboratorio con equipos y herramientas de bajo costo para las prácticas de nuestros alumnos."]
[null,"Causa:",null,"No contar con equipo y herramienta necesaria"]
[null,"Efecto:",null,"No cumplir con los planes de estudios de cada programa educativo a nivel Técnico Superior Universitario"]
[null,"Otros Motivos:"]
[null,"8.-Contar con una licencia de software para 380 egresados para concluir su trámite de titulación electrónica ante Dirección General de Profesiones."]
[null,"Causa:",null,"No dar seguimiento al proceso de titulación de nuestras generaciones"]
[null,"Efecto:",null,"Problemas legales con el alumnado y SEP"]
[null,"Otros Motivos:",null,"Prestigio Universitario"]
[null,"9.-Contar con una unidad automotriz para uso de comisiones del personal administrativo y docente, será usado para uso institucional."]
[null,"Causa:",null,"Que existan más gastos de viáticos durante el año"]
[null,"Efecto:",null,"Gasto en gasolina alto"]
[null,"Otros Motivos:"]
[null,"10.-Difundir y promocionar los servicios educativos de la Universidad Tecnológica de la Tierra Caliente, mediante los medios de comunicación en la región: Televisión, radio y periódico; así como el uso del internet y medios impresos."]
[null,"Causa:",null,"Que aun así no se logre superar nuestra meta de matrícula de nuevo ingreso de 225"]
[null,"Efecto:",null,"Baja matricula y menos presupuesto para el año 2021"]
[null,"Otros Motivos:"]
[null,"11.-Contar con material de oficina necesario para facilitar el trabajo del personal administrativo."]
[null,"Causa:",null,"No cumplir con las responsabilidades administrativas por causa de material de oficina."]
[null,"Efecto:",null,"Malos resultados administrativos."]
[null,"Otros Motivos:",null,"Tiempo de respuesta tardío "]
[null,"12.-Contar con los servicios generales básicos suficientes para mantener tres edificios de la Universidad Tecnológica como: agua, electricidad, internet, saneamiento, entre otros."]
[null,"Causa:",null,"Que no exista un ahorro de servicios básicos"]
[null,"Efecto:",null,"Que exista un mal servicio basico."]
[null,"Otros Motivos:",null,"Gasto excesivo, por no ahorrar servicios básicos."]

{"sheet":"CALENDARIO","index":2,"n_rows":63,"n_cols":13,"rows_kept":63,"merged":[[0,0,0,12],[1,0,1,12],[6,0,6,12],[13,0,13,12],[20,0,20,12],[26,0,26,12],[33,0,33,12],[38,0,38,12],[43,0,43,12],[48,0,48,12],[51,0,51,12],[54,0,54,12],[57,0,57,12],[60,0,60,12]]}
["Procesos"]
["Garantizar que los planes y programas de estudios sean pertinentes y contribuyan a que los estudiantes puedan avanzar exitosamente en su trayectoria educativa, al tiempo que desarrollen aprendizajes significativos y competencias que les sirvan a lo largo de la vida."]
["año 2020","ENE","FEB","MAR","ABR","MAY","JUN","JUL","AGO","SEP","OCT","NOV","DIC"]
["Elaborar estudios de factibilidad de los programas educativos en Gastronomía, Mecanica y Tecnológias de la Información.",{"$nulls":5},1,null,1,1]
["Elaboracion del Análisis Situacional del Trabajo (AST) con ayuda del comité de pertinencia",{"$nulls":6},1,null,null,1,1]
["Aprobación de los programas educativos por parte del comité de pertinencia",{"$nulls":6},1,null,null,1,1]
["Formar Profesionistas capacitados para el desarrollo de sus actividades y posicionar a los egresados en el sector productivo."]
["año 2020","ENE","FEB","MAR","ABR","MAY","JUN","JUL","AGO","SEP","OCT","NOV","DIC"]
["Cumplir con el plan de estudios a nivel Técnico Superior Universitario de 70 practica y 30% teoría.",null,null,30,null,null,30,null,null,30,null,null,30]
["Realizar viajes de estudios ",null,1,null,1,null,null,1,null,1,1]
["Firma de convenios de colaboración con el sector productivo",5,3,2,3,4,3,5,3,2,3,4,3]
["Seguimiento al egresado a nivel Técnico Superior Universitario",{"$nulls":5},{"v":0.8,"d":"80%"},null,null,{"v":0.8,"d":"80%"}]
["Implementación de una bolsa de trabajo para nuestros egresados",{"$nulls":5},{"v":0.15,"d":"15%"},null,null,{"v":0.15,"d":"15%"}]
["Asegurar una mayor cobertura con respecto al egreso del nivel medio superior en la región, incrementando la cobertura en Técnico Superior Universitario."]
["año 2020","ENE","FEB","MAR","ABR","MAY","JUN","JUL","AGO","SEP","OCT","NOV","DIC"]
["Visitar 30 escuelas de nivel media superior de la región.",null,5,null,10,5,null,5,5]
["Participar en las expo-profesionales que realizan las preparatorias de la región.",null,5]
["Visitar puntos estratégicos de los nueve municipios de la región como plazas, tianguis y ferias.",{"$nulls":3},2,2,1,2,2]
["Atender el 100% de nuestros alumnos en tutorias por cuatrimestre",{"$nulls":3},100,{"$nulls":3},100,{"$nulls":3},100]
["Cumplir con las tutorias el 100% en cda cuatrimestre",{"$nulls":3},100,{"$nulls":3},100,{"$nulls":3},100]
["Disminuir el abandono escolar, mejorando la eficiencia terminal y aumentar la tasa de transición en la continuidad de estudios a nivel Ingeniería."]
["año 2020","ENE","FEB","MAR","ABR","MAY","JUN","JUL","AGO","SEP","OCT","NOV","DIC"]
["Llevar a cabo los programas tutorías y asesorías",{"$nulls":3},1,{"$nulls":3},1,{"$nulls":3},{"v":0.01,"d":"1%"}]
["Atención alumnos vulnerables (académico, socioeconómico y psicológico)",{"$nulls":3},100,{"$nulls":3},100,{"$nulls":3},{"v":1,"d":"100%"}]
["Otorgar becas alimenticias por cuatrimestre alumnos en situación económica.",10,{"$nulls":3},10,{"$nulls":3},10]
["Otorgar becas de colegiatura alumnos destacados académicamente.",null,null,{"v":0.6,"d":"60%"},null,null,{"v":0.6,"d":"60%"},{"$nulls":3},{"v":0.6,"d":"60%"}]
["Implementar programas de actividades culturales y deportivas diferenciados para atender las diversas necesidades de la población estudiantil."]
["año 2020","ENE","FEB","MAR","ABR","MAY","JUN","JUL","AGO","SEP","OCT","NOV","DIC"]
["Participar en el encuentro deportivo cultural de Universidades Tecnológicas",null,1]
["Integrar tres talleres: Un deportivo, un cultural y Artístico",{"$nulls":3},1,null,1,null,1]
["Participar en eventos deportivos",{"$nulls":3},1,null,1,null,1,1]
["Participar en eventos culturales (Desfiles, culturales)",1,1,null,1,null,1,null,null,1,null,2,1]
["Realizar eventos internos como: aniversario, Día del TSU, presentación de proyectos",{"$nulls":5},1,null,null,1,1,null,1]
["Garantizar la equidad de genero e inculcar valores de convivencia mediante la ayuda de cursos de equidad de genero y sexualidad."]
["año 2020","ENE","FEB","MAR","ABR","MAY","JUN","JUL","AGO","SEP","OCT","NOV","DIC"]
["Realizar cursos de equidad de genero para todo el alumnado y personal que labora dentro de la Universidad.",null,1,1,{"$nulls":3},1,1,null,1,1]
["Atender y garantizar el respeto a la mujer en todos los servicios educativos que ofrece la Universidad.",{"$nulls":4},1,null,null,1,{"$nulls":3},1]
["Iniciar los procesos de certificación en equidad de genero ",{"$nulls":7},1,null,null,1]
["Implementar capacitaciones al personal docente y administrativo para el desarrollo de sus actividades encomendadas en la Universidad Tecnológica de la Tierra Caliente."]
["AÑO 2020","ENE","FEB","MAR","ABR","MAY","JUN","JUL","AGO","SEP","OCT","NOV","DIC"]
["Participar en el 26 congreso de administración",{"$nulls":7},1]
["Capacitar al personal docente en competencia educativas, certificaciones de office, ",{"$nulls":3},1,{"$nulls":3},1,{"$nulls":3},1]
["Capacitar al personal administrativo y docente en temas de liderazgo, trabajo en equipo, equidad, toma de decisiones, entre otros.",{"$nulls":3},1,{"$nulls":3},2,{"$nulls":3},2]
["Equipar por lo menos un laboratorio con equipos y herramientas de bajo costo para las prácticas de nuestros alumnos."]
["AÑO 2020","ENE","FEB","MAR","ABR","MAY","JUN","JUL","AGO","SEP","OCT","NOV","DIC"]
["Suministrar con equipo informático el laboratorio de tecnologías",null,null,1,{"$nulls":3},1]
["Suministrar con tres proyectores para la carrera de administración y energías renovables.",{"$nulls":4},1,null,2]
["Adquirir una impresora 3D para la carrera de TIC-SI",{"$nulls":5},1]
["Contar con una licencia de software para 380 egresados para concluir su trámite de titulación electrónica ante Dirección General de Profesiones."]
["AÑO 2020","ENE","FEB","MAR","ABR","MAY","JUN","JUL","AGO","SEP","OCT","NOV","DIC"]
["Adquirir una licencia de Software para concluir el proceso de 380 egresados ante Dirección General de Profesiones",20,20,30,30,30,40,30,30,40,40,40,30]
["Contar con una unidad automotriz para uso de comisiones del personal administrativo y docente, será usado para uso institucional."]
["AÑO 2020","ENE","FEB","MAR","ABR","MAY","JUN","JUL","AGO","SEP","OCT","NOV","DIC"]
["Adquirir una unidad automotriz para comisiones administrativas.",{"$nulls":3},1]
["Difundir y promocionar los servicios educativos de la Universidad Tecnológica de la Tierra Caliente, mediante los medios de comunicación en la región: Televisión, radio y periódico; así como el uso del internet y medios impresos."]
["AÑO 2020","ENE","FEB","MAR","ABR","MAY","JUN","JUL","AGO","SEP","OCT","NOV","DIC"]
["\nDifusión en radio, periódico, televisión, internet y otros medios impresos\n",null,5,5,5,7,8,8,5,2]
["Contar con material de oficina necesario para facilitar el trabajo del personal administrativo."]
["AÑO 2020","ENE","FEB","MAR","ABR","MAY","JUN","JUL","AGO","SEP","OCT","NOV","DIC"]
["Contar con el material necesario de oficina para facilitar el trabajo en las áreas administrativas.",null,null,100,null,null,100,null,null,100,null,null,100]
["Contar con los servicios generales básicos suficientes para mantener tres edificios de la Universidad Tecnológica como: agua, electricidad, internet, saneamiento, entre otros."]
["AÑO 2020","ENE","FEB","MAR","ABR","MAY","JUN","JUL","AGO","SEP","OCT","NOV","DIC"]
["Contar con servicios generales básicos suficientes para mantener a los tres edificios en agua, electricidad, internet, saneamiento y otros. ",null,null,100,null,null,100,null,null,100,null,null,100]

{"sheet":"Formato 1","index":3,"n_rows":22,"n_cols":6,"rows_kept":22,"merged":[[18,0,18,5]]}
[null,"Formato 1. Árbol de Problemas"]
[]
[null,"pocas oportunidades de empleo para nuestros egresados y mal remunerados",null,"Bajo nivel academico al no contar con el equipo tecnologico necesario."]
[]
[null,"Poca aceptaion de nuestros egresados con el sector productivo.",null,"Bajo rendimiento operativo dentro de la UTTC",null,"Personal docente y administrativo no capacitado"]
[]
[{"$nulls":3},"Servicios educativos que oferta la Universidad Tecnológica de la Tierra Caliente son insuficientes y mal atendido por el personal"]
[]
[null,"programas educativos no pertinentes ante el Consejo de Vinculación",null,"Falta de procesos administrativos: manuel de procedimientos, reglamentos, normativa.",null,"Falta de capacitaciones al personal docente y administrativo"]
[]
[null,"Falta de espacios recreativos y de estudios",null,"Falta de herramientas y equipo tecnologico",null,"insuficiencia del personal administrativo"]
[]
["Instrucciones:"]
[]
["¿Cuál es su objetivo?"]
["Analizar el origen, comportamiento y consecuencia del problema definido, a fin de establecer las diversas causas y su dinámica, así como sus efectos, y tendencias de cambio."]
[]
["¿En qué consiste?"]
["Una de las alternativas para el análisis del problema consiste en el ordenamiento de las causas y los efctos detectados en un esquema tipo \"árbol de problemas\", donde el problema definido es el punto de partida, las causas y los efectos, deben relacionarseentre sí estableciendo directas e indirectas."]
[]
["¿Para qué se utiliza?"]
["Para coocer la naturaleza y el entorno del problema, lo que permitriá resolverlo (establecer las acciones para solvetar cada una de las causas que lo originan)."]

{"sheet":"Formato 2","index":4,"n_rows":11,"n_cols":6,"rows_kept":11}
[null,"Formato 1. Árbol de Objetivos"]
[]
[null," Empleos mas calificados y mejor remunedados para nuestros egresados",null,"Alto nivel academico y  equipo tecnologico necesario."]
[]
[null,"Mayor aceptacion de nuestros egresados con el sector productivo.",null,"Mejor rendimiento operativo dentro de la UTTC",null,"Personal docente y administrativoaltamente capacitado"]
[]
[{"$nulls":3},"Servicios educativos que ofera la Universidad Tecnológica de la Tierra Caliente son suficientes y de calidad"]
[]
[null,"programas educativos pertinentes ante el Consejo de Vinculación",null,"Contar con los  procesos administrativos: manuel de procedimientos, reglamentos y normtiva.",null,"capacitaciones al personal docente y administrativo"]
[]
[null,"espacios suficientes recreativos y de estudios para el estudiante",null,"Suficientes herramientas y equipo tecnologico en los laboratorios y talleres",null,"Eficacia del personal administrativo en sus funciones administrativas"]

{"sheet":"ESTRUCTUA ANALITICA","index":5,"n_rows":22,"n_cols":2,"rows_kept":22,"merged":[[0,0,0,1]]}
["Servicios educativos que oferta la Universidad Tecnológica de la Tierra Caliente son de calidad"]
["Problemática","Solución"]
["Efectos","Fines"]
["pocas oportunidades de empleo para nuestros egresados y mal remunerados"," Empleos mas calificados y mejor remunedados para nuestros egresados"]
["Poca aceptaion de nuestros egresados con el sector productivo.","Mayor aceptacion de nuestros egresados con el sector productivo."]
["Bajo nivel academico al no contar con el equipo tecnologico necesario.","Alto nivel academico y  equipo tecnologico necesario."]
["Bajo rendimiento operativo dentro de la UTTC","Mejor rendimiento operativo dentro de la UTTC"]
["Personal docente y administrativo no capacitado","Personal docente y administrativo altamente capacitado"]
["PROBLEMA","OBJETIVO"]
["POBLACION","POBLACIÓN"]
["Servicios educativos que ofera la Universidad Tecnológica de la Tierra Caliente son insuficientes y mal atendido por el personal","Servicios educativos que ofera la Universidad Tecnológica de la Tierra Caliente son suficientes y de calidad"]
["Descripción del problema","Descripción del resultado esperado:"]
["Los servicios educativos que ofrece la UTTC, son insuficientes, ocasionando resultados de desercion escolar de 20% y una tasa de egresados del 60%","Los servicios educativos de la Universidad Tecnologica de la Tierra Caliente mejoren en la calidad de sus servicios, disminuyendo la deserción escolar y aumentando su tasa de egresados."]
["Magnitud (linea base)","Magnitud (resultado a esperar)"]
["Tasa de deserción anivel TSU del 20% y una tasa de egresados del 60%.","Garantizar al alumnado educacion de calidad en  nuestros servicios educativos, aumentando la tasa de egresados a un 85% y disminuir la deserción a un 8%"]
["Causas","Medios"]
["programas educativos no pertinentes ante el Consejo de Vinculación","programas educativos pertinentes ante el Consejo de Vinculación"]
["Contar con actividades culturales, deportivas, artisticas.","Crear tres talleres para la pratica deportiva, artistica."]
["Falta de procesos administrativos: manuel de procedimientos, reglamentos, normativa.","Contar con los  procesos administrativos: manuel de procedimientos, reglamentos y normtiva."]
["Falta de herramientas y equipo tecnologico","Suficientes herramientas y equipo tecnologico en los laboratorios y talleres"]
["Falta de capacitaciones al personal docente y administrativo","capacitaciones al personal docente y administrativo"]
["insuficiencia del personal administrativo","Eficacia del personal administrativo en sus funciones administrativas"]

{"sheet":"Formato 3","index":6,"n_rows":590,"n_cols":5,"rows_kept":590,"merged":[[2,1,2,4],[4,0,9,0],[4,1,4,2],[11,0,13,0],[11,1,11,2],[12,1,13,1],[12,2,13,2],[12,3,13,3],[12,4,13,4],[15,0,26,0],[15,1,15,2],[28,0,49,0],[28,2,28,4],[29,1,29,4],[30,2,30,4],[31,1,31,4],[32,2,32,4],[33,1,33,4],[34,2,34,4],[35,1,35,4],[36,2,36,4],[37,1,37,4],[38,2,38,4],[39,1,39,4],[40,2,40,4],[41,1,41,4],[42,2,42,4],[43,1,43,4],[44,2,44,4],[45,1,45,4],[46,2,46,4],[47,1,47,4],[48,2,48,4],[49,1,49,4]]}
[null,"Formato 3. Para Elaboración del resumen narrativo"]
[]
["Nivel","Resumen Narrativo"]
[]
["Fin","¿Qué?",null,"Mediante","¿Cómo?"]
[null,null," Empleos más calificados y mejor remunerados para nuestros egresados","Mediante","Ofrecer educación continua como: cursos, congresos, diplomados extracurriculares a nuestros egresados logrando en el, mayores competencias para el mercado laboral."]
[null,null,"Mayor aceptación de nuestros egresados con el sector productivo.","a través de ","Trabajo colectivo con el sector productivo en la firma de convenios, pertinencia de nuestros programas educativos."]
[null,null,"Alto nivel académico y  equipo tecnológico necesario.","Mediante","Nuevas estrategias de aprendizaje y la utilización adecuada de los equipos tecnológicos."]
[null,null,"Mejor rendimiento operativo dentro de la UTTC","a través de ","Procedimientos administrativos, normas, reglamentos, manuales de procedimiento."]
[null,null,"Personal docente y administrativo altamente capacitado","a través de ","Capacitaciones orientadas a sus funciones primordiales, mediante cursos, diplomados y certificaciones."]
[]
["Propósito","Sujeto",null,"Verbo","Complemento"]
[null,null,"Los servicios educativos de la Universidad Tecnológica de la Tierra Caliente"," mejoren"," En la calidad de sus servicios, disminuyendo la deserción escolar y aumentando su tasa de egresados."]
[]
[]
["Componentes","Productos",null,"Verbo participio"]
[null,"C.1","Garantizar que los planes y programas de estudios sean pertinentes y contribuyan a que los estudiantes puedan avanzar exitosamente en su trayectoria educativa, al tiempo que desarrollen aprendizajes significativos y competencias que les sirvan a lo largo de la vida.","Garantizar"]
[null,"C.2","Formar Profesionistas capacitados para el desarrollo de sus actividades y posicionar a los egresados en el sector productivo.","Pertinencia"]
[null,"C.3","Asegurar una mayor cobertura con respecto al egreso del nivel medio superior en la región, incrementando la cobertura en Técnico Superior Universitario.","Eficiencia"]
[null,"C.4","Disminuir el abandono escolar, mejorando la eficiencia terminal y aumentar la tasa de transición en la continuidad de estudios a nivel Ingeniería.","Eficacia"]
[null,"C.5","Implementar programas de actividades culturales y deportivas diferenciados para atender las diversas necesidades de la población estudiantil.","Pertinencia"]
[null,"C.6","Garantizar la equidad de genero e inculcar valores de convivenvia mediante la ayuda de cursos de equidad de genero y sexualidad","Pertinencia"]
[null,"C.7","Implementar capacitaciones al personal docente y administrativo para el desarrollo de sus actividades encomendadas en la Universidad Tecnológica de la Tierra Caliente.","Pertinencia"]
[null,"C.8","Equipar por lo menos un laboratorio con equipos y herramientas de bajo costo para las prácticas de nuestros alumnos.","Eficiencia"]
[null,"C.9","Contar con una licencia de software para 380 egresados para concluir su trámite de titulación electrónica ante Dirección General de Profesiones.","Eficacia"]
[null,"C.10","Contar con una unidad automotriz para uso de comisiones del personal administrativo y docente, será usado para uso institucional.","Eficiencia"]
[null,"C.11","Difundir y promocionar los servicios educativos de la Universidad Tecnológica de la Tierra Caliente, mediante los medios de comunicación en la región: Televisión, radio y periódico; así como el uso del internet y medios impresos.","Pertinencia"]
[]
["Actividades","C.1","Programas educativos pertinentes ante el Consejo de Vinculación"]
[null,"Administrar y elaborar estudios de factibilidad. \nColaboración con el sector productivo (Convenios de colaboración) y para la elaboración de Análisis Situacional del Trabajo (AST) de acuerdo a las necesidades del mercado.\nAprobación de los programas educativos por parte del comité de pertinencia"]
[null,"C.2","Formar Profesionistas capacitados para el desarrollo de sus actividades y posicionar a los egresados en el sector productivo."]
[null,"Cumplir con el plan de estudios a nivel Técnico Superior Universitario de 30 practica y 70% teoría.\nRealizar viajes de estudios \nSeguimiento al egresado a nivel Técnico Superior Universitario\nImplementación de una bolsa de trabajo para nuestros egresados\n"]
[null,"C.3","Asegurar una mayor cobertura con respecto al egreso del nivel medio superior en la región, incrementando la cobertura en Técnico Superior Universitario."]
[null,"Visitar 30 escuelas de nivel media superior de la región.\nParticipar en las expo-profesionales que realizan las preparatorias de la región.\nVisitar puntos estratégicos de los nueve municipios de la región como plazas, tianguis y ferias.\n"]
[null,"C.4","Disminuir el abandono escolar, mejorando la eficiencia terminal y aumentar la tasa de transición en la continuidad de estudios a nivel Ingeniería."]
[null,"Implementación de tutorías y asesorías\nAtención alumnos vulnerables (académico, socioeconómico y psicológico)\nOtorgar becas alimenticias por cuatrimestre alumnos en situación económica.\nOtorgar becas de colegiatura alumnos destacados académicamente.\n"]
[null,"C.5","Implementar programas de actividades culturales y deportivas diferenciados para atender las diversas necesidades de la población estudiantil."]
[null,"Participar en el encuentro deportivo cultural de Universidades Tecnológicas\nIntegrar tres talleres: Un deportivo, un cultural y Artístico.\nParticipar en eventos culturales (Desfiles, culturales)\nRealizar eventos internos como: aniversario, Día del TSU, presentación de proyectos\n"]
[null,"C.6","Garantizar la equidad de genero e inculcar valores de convivenvia mediante la ayuda de cursos de equidad de genero y sexualidad"]
[null,"Realizar cursos de equidad de genero para todo el alumnado y personal que labora dentro de la Universidad.\nAtender y garantizar el respeto a la mujer en todos los servicios educativos que ofrece la Universidad.\nIniciar los procesos de certificación en equidad de genero "]
[null,"C.7","Implementar capacitaciones al personal docente y administrativo para el desarrollo de sus actividades encomendadas en la Universidad Tecnológica de la Tierra Caliente."]
[null,"Participar en el 26 congreso de administración\nCapacitar al personal docente en competencias educativas, certificaciones de office.\nCapacitar al personal administrativo y docente en temas de liderazgo, trabajo en equipo, equidad, toma de decisiones, entre otros."]
[null,"C.8","Equipar por lo menos un laboratorio con equipos y herramientas de bajo costo para las prácticas de nuestros alumnos."]
[null,"Suministrar con equipo informático el laboratorio de tecnologías\nSuministrar con tres proyectores para la carrera de administración y energías renovables.\nAdquirir una impresora 3D para la carrera de TIC-SI"]
[null,"C.9","Contar con una licencia de software para 380 egresados para concluir su trámite de titulación electrónica ante Dirección General de Profesiones."]
[null,"Adquirir una licencia de Software para concluir el proceso de 380 egresados ante Dirección General de Profesiones"]
[null,"C.10","Contar con una unidad automotriz para uso de comisiones del personal administrativo y docente, será usado para uso institucional."]
[null,"Adquirir una unidad automotriz para comisiones administrativas."]
[null,"C.11","Difundir y promocionar los servicios educativos de la Universidad Tecnológica de la Tierra Caliente, mediante los medios de comunicación en la región: Televisión, radio y periódico; así como el uso del internet y medios impresos."]
[null,"Difusión en radio, periódico, televisión, internet y otros medios impresos"]
{"$rows_empty":539}
[null," "]

{"sheet":"Formato 4","index":7,"n_rows":56,"n_cols":5,"rows_kept":56,"merged":[[1,1,1,4],[2,1,2,4],[3,1,3,4],[4,1,4,4],[6,1,6,4],[7,1,8,1],[7,2,8,2],[7,3,8,3],[7,4,8,4],[32,2,34,2],[32,3,34,3],[32,4,34,4],[48,2,49,2],[48,3,49,3],[48,4,49,4]]}
[null,"Formato 4. MIR"]
["Eje:","3. GUERRERO SOCIALMENTE COMPROMETIDO"]
["Objetivo:","3.8. IMPULSAR LA EDUCACIÓN DE CALIDAD PARA TODOS"]
["Estrategia:","3.8.3. Garantizar que los planes y programas de estudio sean pertinentes y contribuyan a que los estudiantes avancen exitosamente en su trayectoria educativa, al tiempo que desarrollen aprendizajes significativos y competencias que le sirvan al árbol de la vida; \n3.8.5. Disminuir la deserción escolar y fomentar la conclusión de los estudios en sus diferentes niveles.\n3.9.1. Colocar a la cultura como un elemento prioritario para el desarrollo integral de los guerrerenses;\n3.9.5. Diseñar programas de actividad física y deportiva para atender las necesidades de la población."]
["Línea de Acción:","Fomentar desde la educación básica los conocimientos, las habilidades y las aptitudes que estimulen la investigación y la innovación científicas y tecnológicas.\nAmpliar y fortalecer la operaciones de los sistemas de apoyo tutorial, con el fin de reducir los niveles de deserción de los estudiantes y favorecer la conclusión oportuna de sus estudios.\nAsegurar que a cultura se integre al proceso educativo de la población en sus tiempos libres y de recreación como una forma de acrecentar los valores, las costumbres, el deporte, los derechos, la equidad de género, y la ciudadanía.\nPromover la práctica deportiva con un enfoque que fomente los valores como el trabajo en equipo, el respeto a las reglas y la obtención del éxito mediante el esfuerzo individual y colectivo."]
[]
[null,"Matriz de indicadores para Resultados"]
[null,"Resumen Narrativo","Indicadores de desempeño","Medios de Verificación","Supuestos"]
[]
["Fin","Mayor aceptación de nuestros egresados con el sector productivo.","Convenios colaborativos\nColocación de alumnos en estadía\nMayor viajes de estudios: congresos, empresas, etc.","Informe de Consejo y http://guerrero.gob.mx/transparencia/informacion-publica-de-oficio-uttc-2017/","Más oportunidades de desarrollo profesional para nuestros egresados y mayor aceptación del sector productivo."]
["Fin","Alto nivel académico y  equipo tecnológico necesario.","Tasa de deserción a nivel TSU menor a 5%\nAprovechamiento escolar del 8.6.\nUtilización de laboratorios y talleres.","Informe de Consejo y http://guerrero.gob.mx/transparencia/informacion-publica-de-oficio-uttc-2017/","Mayor capacitados y mejor uso de laboratorios y talleres."]
["Fin","Mejor rendimiento operativo dentro de la UTTC","Encuestas de satisfacción de servicios\nManual de procedimientos\nCumplimiento de objetivos o metas por área.","Informe de Consejo\nControl y seguimientos de procesos adm.\nhttp://guerrero.gob.mx/transparencia/informacion-publica-de-oficio-uttc-2017/","Calidad en nuestros servicios educativos con el objetivo de alcanzar una certificación en ISO."]
["Fin","Personal docente y administrativo altamente capacitado","Capacitaciones para el personal docente y administrativo.\nPersonal capacitado y no capacitado.","Informe de Consejo y http://guerrero.gob.mx/transparencia/informacion-publica-de-oficio-uttc-2017/","Personal altamente capacitado y mayor servicio educativo."]
["Propósito (resultados)","Los servicios educativos de la Universidad Tecnológica de la Tierra Caliente mejoren en la calidad de sus servicios, disminuyendo la deserción escolar y aumentando su tasa de egresados.","Calidad en los servicios educativos.\nDisminución de deserción escolar a nivel TSU.\nAumentar la tasa de egresados a un 85%","Informe de Consejo y http://guerrero.gob.mx/transparencia/informacion-publica-de-oficio-uttc-2017/","Contar con su manual de procedimientos y reglamento vigente; mejorar la calidad de nuestros servicios para lograr una certificación; también aumentar la tasa de egresados y disminuir el abandono escolar."]
["Componentes (Servicios y Productos)","Garantizar que los planes y programas de estudios sean pertinentes y contribuyan a que los estudiantes puedan avanzar exitosamente en su trayectoria educativa, al tiempo que desarrollen aprendizajes significativos y competencias que les sirvan a lo largo de la vida.","Programas educativos pertinentes","Informe de Consejo y http://guerrero.gob.mx/transparencia/informacion-publica-de-oficio-uttc-2017/","Garantizar la pertinencia de nuestros programas educativos ante el sector productivo."]
["Componentes (Servicios y Productos)","Formar Profesionistas capacitados para el desarrollo de sus actividades y posicionar a los egresados en el sector productivo.","Egresados con empleo a seis meses de su egreso","Informe de Consejo y http://guerrero.gob.mx/transparencia/informacion-publica-de-oficio-uttc-2017/","Que egresados tengan más oportunidades de empleo a seis meses de su egreso."]
["Componentes (Servicios y Productos)","Asegurar una mayor cobertura con respecto al egreso del nivel medio superior en la región, incrementando la cobertura en Técnico Superior Universitario.","Lograr una matrícula de nuevo ingreso de 225 para el ciclo escolar 2020 - 2021","En Transparencia http://guerrero.gob.mx/transparencia/informacion-publica-de-oficio-uttc-2017/","Superar nuestra meta de 225 alumnos de nuevo ingreso."]
["Componentes (Servicios y Productos)","Disminuir el abandono escolar, mejorando la eficiencia terminal y aumentar la tasa de transición en la continuidad de estudios a nivel Ingeniería.","Atención de alumnos vulnerables ","En Transparencia http://guerrero.gob.mx/transparencia/informacion-publica-de-oficio-uttc-2017/","Atender alumnos vulnerables y disminuir la deserción escolar."]
["Componentes (Servicios y Productos)","Implementar programas de actividades culturales y deportivas diferenciados para atender las diversas necesidades de la población estudiantil.","Integración y participación de nuestros alumnos a los talleres.","Informe de consejo","Desempeñarnos ante la sociedad en eventos deportivos, culturales y artísticos."]
["Componentes (Servicios y Productos)","Garantizar la equidad de genero e inculcar valores de convivenvia mediante la ayuda de cursos de equidad de genero y sexualidad","Atender al alumnado y garantizar la equidad de genero","Informe de consejo","Garantizar la eqyuidad de genero"]
["Componentes (Servicios y Productos)","Implementar capacitaciones al personal docente y administrativo para el desarrollo de sus actividades encomendadas en la Universidad Tecnológica de la Tierra Caliente.","Capacitar al personal docente y administrativo de acuerdo a sus necesidades","Informe de consejo","Que el personal docente y administrativo sea eficiente en sus actividades diarias."]
["Componentes (Servicios y Productos)","Equipar por lo menos un laboratorio con equipos y herramientas de bajo costo para las prácticas de nuestros alumnos.","Cumplir con el plan de estudios.","Informe de consejo","Lograr que nuestros alumnos cuente con el material necesario para realizar sus prácticas profesionales,"]
["Componentes (Servicios y Productos)","Contar con una licencia de software para 380 egresados para concluir su trámite de titulación electrónica ante Dirección General de Profesiones.","Egresados con título electrónico.","Informe de consejo, Información de MECASUT","Tramitar ante dirección General de Profesiones los títulos electrónicos de nuestros egresados de las generaciones anteriores."]
["Componentes (Servicios y Productos)","Contar con una unidad automotriz para uso de comisiones del personal administrativo y docente, será usado para uso institucional.","Contar con el primer vehículo institucional","Informe de consejo","Ahorro de viáticos y ahorro de gasolina en comisiones institucionales"]
["Componentes (Servicios y Productos)","Difundir y promocionar los servicios educativos de la Universidad Tecnológica de la Tierra Caliente, mediante los medios de comunicación en la región: Televisión, radio y periódico; así como el uso del internet y medios impresos.","Que a toda la sociedad conozca la oferta educativa ","Informe de consejo","Asegurar una mayor comunicación y mayor aceptación de distintas personas que desean estudiar en la UT"]
["Actividades (Procesos)","Estudios de factibilidad de los programas educativos","Contar con los estudios que acrediten la pertinencia de nuestros programas educativos.","Informe de Consejo y http://guerrero.gob.mx/transparencia/informacion-publica-de-oficio-uttc-2017/","Garantizar mediante los estudios la pertinencia de tres programas educativos "]
["Actividades (Procesos)","Análisis Situacional del Trabajo (AST) con ayuda del comité de pertinencia","AST realizados por carrera","Informe de Consejo y http://guerrero.gob.mx/transparencia/informacion-publica-de-oficio-uttc-2017/","Garantizar la pertinencia de nuestros programas educativos ante el sector productivo."]
["Actividades (Procesos)","Aprobación de los programas educativos por parte del comité de pertinencia","Aprobación de la pertinencia educativa.","Informe de Consejo y http://guerrero.gob.mx/transparencia/informacion-publica-de-oficio-uttc-2017/","Garantizar la pertinencia de nuestros programas educativos ante el sector productivo."]
["Actividades (Procesos)","Cumplir con el plan de estudios a nivel Técnico Superior Universitario de 30 practica y 70% teoría.","Cumplir con el plan de estudios a nivel TSU","informe de consejo","Cumplir en su totalidad con el plan de estudios a nivel Técnico Superior Universitario."]
["Actividades (Procesos)","Firma de convenios de colaboración con el sector productivo","Contar con  más convenios de colaboración ","informe de consejo","Lograr 20 convenios de colaboración en el año, para más oportunidades para nuestros egresados"]
["Actividades (Procesos)","Seguimiento al egresado a nivel Técnico Superior Universitario","Dar el seguimiento a nuestros egresados ","informe de consejo","Conocer el estatus laboral de nuestros egresados, tanto profesional y social."]
["Actividades (Procesos)","Implementación de una bolsa de trabajo para nuestros egresados","Empresas colaborativas (Convenios) nos ofrezcan como primera opción a nuestros egresados la oportunidad de empleo.","Informe de Consejo y http://guerrero.gob.mx/transparencia/informacion-publica-de-oficio-uttc-2017/","Que nuestros egresados tengan más oportunidades de empleo con empresas colaborativas."]
["Actividades (Procesos)","Visitar 30 escuelas de nivel media superior de la región.","Lograr una matrícula de nuevo ingreso de 225 para el ciclo escolar 2020 - 2021","informe de consejo, información enviada a la CGUTyP","Superar la matrícula de nuevo ingreso de 225 para el ciclo escolar 2020 - 2021"]
["Actividades (Procesos)","Participar en las expo-profesionales que realizan las preparatorias de la región."]
["Actividades (Procesos)","Visitar puntos estratégicos de los nueve municipios de la región como plazas, tianguis y ferias."]
["Actividades (Procesos)","Implementación de tutorías y asesorías","Cumplir con el total de tutorías y asesorías","informe de consejo","Lograr atender al 100% en tutorías a nuestros alumnos, y asesorar alumnado en situaciones académicas."]
["Actividades (Procesos)","Atención alumnos vulnerables (académico, socioeconómico y psicológico)","Diagnosticar y atender alumnos en situación vulnerables","informe de consejo","Atender alumnos vulnerables y disminuir la deserción escolar hasta un 8% a nivel TSU"]
["Actividades (Procesos)","Otorgar becas alimenticias por cuatrimestre alumnos en situación económica.","Otorgar diez becas alimenticias alumnos vulnerables","informe de consejo","Con ayuda de la cooperativa otorgar diez becas alimenticias alumnos vulnerables."]
["Actividades (Procesos)","Otorgar becas de colegiatura alumnos destacados académicamente.","Otorgar becas de descuento de colegiatura alumnos con aprovechamiento de 9.0","informe de consejo","Ofrecer a nuestros alumnos destacados descuentos en colegiatura por su desempeño académico."]
["Actividades (Procesos)","Participar en el encuentro deportivo cultural de Universidades Tecnológicas","Participar en el encuentro deportivo regional de UT","informe de consejo"," Participar y obtener primeros lugares en el evento deportivo de UT."]
["Actividades (Procesos)","Integrar tres talleres: Un deportivo, un cultural y Artístico","Integrar tres talleres/ participación de nuestro alumnado","informe de consejo","Integrar tres talleres con la participación de nuestros alumnos para representar a la UT."]
["Actividades (Procesos)","Participar en eventos deportivos","Participar en liga municipales en distintos deportes","informe de consejo","Participar y fomentar el deporte a nuestros alumnos en ligas municipales."]
["Actividades (Procesos)","Participar en eventos culturales (Desfiles, culturales)","Participar en eventos ","informe de consejo","Participar en 10 eventos culturales de la región."]
["Actividades (Procesos)","Realizar eventos internos como: aniversario, Día del TSU, presentación de proyectos","Realizar eventos internos conmemorativos ","informe de consejo","Festejar aniversario, día del TSU y presentación de proyectos."]
["Actividades (Procesos)","Realizar cursos de equidad de genero para todo el alumnado y personal que labora dentro de la Universidad.","Que todo el alumnado y personal docente participe en los cursos de equidad de genero","informe de consejo","Lograr que todo el alumnaddo y el personal de la utttc sea conciente y responsable en la equidad de genero"]
["Actividades (Procesos)","Atender y garantizar el respeto a la mujer en todos los servicios educativos que ofrece la Universidad.","Atender al alumnado y garantizar la equidad de genero","informe de consejo","Garantizar el respetoi a la mujer"]
["Actividades (Procesos)","Iniciar los procesos de certificación en equidad de genero ","Certificar a la UTTC en equidad de genero","informe de consejo","otener la certificacion de equidad de genero"]
["Actividades (Procesos)","Participar en el 26 congreso de administración","Participar en un congreso realizado por el comité de directores de administración del subsistema","informe de consejo","Participar en un congreso realizado por el comité de directores de administración del subsistema"]
["Actividades (Procesos)","Capacitar al personal docente en competencias educativas, certificaciones de office.","Capacitar al personal docente y administrativo de acuerdo a las necesidades laborales","informe de consejo","Contar con el personal administrativo y docente altamente capacitado para sus funciones; garantizando que cada uno de ellos conozca sus funciones primordiales y se obtengan resultados aceptables."]
["Actividades (Procesos)","Capacitar al personal administrativo y docente en temas de liderazgo, trabajo en equipo, equidad, toma de decisiones, entre otros."]
["Actividades (Procesos)","Suministrar con equipo informático el laboratorio de tecnologías","Contar con equipo necesario para el laboratorio de TIC","informe de consejo","Contar con herramienta necesaria para practica en la carrera de TIC"]
["Actividades (Procesos)","Suministrar con tres proyectores para la carrera de administración y energías renovables.","Contar con tres proyectores","informe de consejo","Abarcar con tres proyectores dos programas educativos."]
["Actividades (Procesos)","Adquirir una impresora 3D para la carrera de TIC-SI","Contar con equipo de impresión en 3D para practicas","informe de consejo","Contar con herramienta necesaria para practica en la carrera de TIC"]
["Actividades (Procesos)","Adquirir una licencia de Software para concluir el proceso de 380 egresados ante Dirección General de Profesiones","Titular al 100% de nuestros egresados","informe de consejo","Cubrir la demanda de egreso a nivel TSU e ingeniería para que obtengan su título electrónico. "]
["Actividades (Procesos)","Adquirir una unidad automotriz para comisiones administrativas.","Mayor ahorro de viáticos","informe de consejo","Eficientizar el ahorro de viáticos y ahorro de gasolina en comisiones institucionales"]
["Actividades (Procesos)","Difusión en radio, periódico, televisión, internet y otros medios impresos","Difundir en medios comunicativos la oferta educativa","informe de consejo","Asegurar una mayor comunicación y mayor aceptación de distintas personas que desean estudiar en la UT"]